bitfinex/quotes_BTCUSD_20250619
["timestamp","ask_amount","ask_price","bid_price","bid_amount"]
[1750315906735,0.21355267,104840.0,104830.0,0.0644]
[1750315906956,0.21355267,104840.0,104830.0,0.07393925]
[1750315907619,0.26357751,104840.0,104830.0,0.26472433]
[1750315907858,0.21355267,104840.0,104830.0,0.27426349]
[1750315908061,0.21355267,104840.0,104830.0,0.26472433]
[1750315909596,0.21355267,104840.0,104830.0,0.07393925]
[1750315911388,0.22246284,104840.0,104830.0,0.07393925]
[1750315912223,0.22246284,104840.0,104830.0,0.26472433]
[1750315913202,0.22246284,104840.0,104830.0,0.27426349]
[1750315914070,0.22246291,104840.0,104830.0,0.27426349]
[1750315915526,0.22246291,104840.0,104830.0,0.28380256]
[1750315916110,0.22246291,104840.0,104830.0,0.27426349]
[1750315916567,0.22246291,104840.0,104830.0,0.07393925]
[1750315917006,0.22246291,104840.0,104830.0,0.0644]
[1750315917646,0.20678452,104840.0,104830.0,0.0644]
[1750315918755,0.25897914,104840.0,104830.0,0.0644]
[1750315918974,0.25187174,104840.0,104830.0,0.0644]
[1750315919520,0.20033355,104830.0,104820.0,0.41592344]
[1750315919744,0.20924379,104830.0,104820.0,0.42546351]
[1750315920382,0.20924379,104830.0,104820.0,0.26184344]
[1750315921458,0.20924379,104830.0,104820.0,0.26284344]
[1750315921878,0.20924379,104830.0,104820.0,0.07204016]
[1750315922297,0.20924669,104830.0,104820.0,0.0625]
[1750315922512,0.20924669,104830.0,104820.0,0.07204016]
[1750315922721,0.26409168,104830.0,104820.0,0.0625]
[1750315922937,0.20924669,104830.0,104820.0,0.0625]
[1750315925062,0.20033355,104830.0,104820.0,0.0625]
[1750315925269,0.20924158,104830.0,104820.0,0.0625]
[1750315925481,0.20924158,104830.0,104820.0,0.0615]
[1750315928096,0.20923884,104830.0,104820.0,0.0615]
[1750315928311,0.28233841,104830.0,104820.0,0.0615]
[1750315928985,0.20923884,104830.0,104820.0,0.07104016]
[1750315929190,0.20923884,104830.0,104820.0,0.08058023]
[1750315929410,0.20923884,104830.0,104820.0,0.07104016]
[1750315929634,0.2320371,104830.0,104820.0,0.27138351]
[1750315929929,0.2320371,104830.0,104820.0,0.28092349]
[1750315930593,0.2320371,104830.0,104820.0,0.29046338]
[1750315931058,0.23203596,104830.0,104820.0,0.28092349]
[1750315932211,0.23203596,104830.0,104820.0,0.26184344]
[1750315932421,0.30741524,104830.0,104820.0,0.27138351]
[1750315932930,0.29787608,104830.0,104820.0,0.27138351]
[1750315933372,0.03170241,104830.0,104820.0,0.27138351]
[1750315933598,0.2092283,104830.0,104820.0,0.28092331]
[1750315933821,0.23202622,104830.0,104820.0,0.28092331]
[1750315934302,0.23202622,104830.0,104820.0,0.28092349]
[1750315934527,0.23202622,104830.0,104820.0,0.29046338]
[1750315934775,0.23202622,104830.0,104820.0,0.28092349]
[1750315935452,0.23202622,104830.0,104820.0,0.29046338]
[1750315939429,0.22312241,104830.0,104820.0,0.29046338]
[1750315939640,0.22248854,104830.0,104820.0,0.0615]
[1750315941976,0.22249034,104830.0,104820.0,0.0615]
[1750315943931,0.272469,104830.0,104820.0,0.0615]
[1750315945089,0.22249034,104830.0,104820.0,0.0615]
[1750315948188,0.22249837,104830.0,104820.0,0.0615]
[1750315948629,0.25101192,104830.0,104820.0,0.0615]
[1750315953617,0.2510157,104830.0,104820.0,0.0615]
[1750315954042,0.25101567,104830.0,104820.0,0.0615]
[1750315956458,0.24209689,104830.0,104820.0,0.0615]
[1750315956682,0.2510157,104830.0,104820.0,0.0615]
[1750315956917,0.25101563,104830.0,104820.0,0.0615]
[1750315957628,0.25101574,104830.0,104820.0,0.0615]
[1750315959846,0.24209689,104830.0,104820.0,0.0615]
[1750315960100,0.251017,104830.0,104820.0,0.0615]
[1750315960326,0.25101689,104830.0,104820.0,0.0615]
[1750315972173,0.25101789,104830.0,104820.0,0.0615]
[1750315973199,0.03171926,104830.0,104820.0,0.0615]
[1750315973411,0.19970608,104830.0,104820.0,0.0615]
[1750315973619,0.22250434,104830.0,104820.0,0.0615]
[1750315979618,0.22250589,104830.0,104820.0,0.0615]
[1750315980145,0.22250588,104830.0,104820.0,0.0615]
[1750315980567,0.22250592,104830.0,104820.0,0.0615]
[1750315980771,0.30086419,104830.0,104820.0,0.0615]
[1750315980977,0.22250592,104830.0,104820.0,0.0615]
[1750315982866,0.22250347,104830.0,104820.0,0.0615]
[1750315983223,0.25101702,104830.0,104820.0,0.0615]
[1750315985599,0.25101699,104830.0,104820.0,0.0615]
[1750315985807,0.23204251,104830.0,104820.0,0.26184335]
[1750315986643,0.23204251,104830.0,104820.0,0.25230328]
[1750315986875,0.23204251,104830.0,104820.0,0.26184326]
[1750315988328,0.23204251,104830.0,104820.0,0.26184344]
[1750315989467,0.23204251,104830.0,104820.0,0.27138351]
[1750315989646,0.23204251,104830.0,104820.0,0.28092349]
[1750315991158,0.23204251,104830.0,104820.0,0.27138351]
[1750315991893,0.23204251,104830.0,104820.0,0.28092349]
[1750315992536,0.23204251,104830.0,104820.0,0.27138351]
[1750315992976,0.23204251,104830.0,104820.0,0.28092349]
[1750315994215,0.23204124,104830.0,104820.0,0.28092349]
[1750315994441,0.23204124,104830.0,104820.0,0.27138351]
[1750315997167,0.2320414,104830.0,104820.0,0.27138351]
[1750316004683,0.40663079,104840.0,104830.0,0.062]
[1750316005151,0.44558255,104840.0,104830.0,0.062]
[1750316005378,0.40663079,104840.0,104830.0,0.062]
[1750316007423,0.193,104840.0,104830.0,0.062]
[1750316007625,0.38376688,104840.0,104830.0,0.062]
[1750316009695,0.22996688,104840.0,104830.0,0.062]
[1750316010509,0.28764394,104840.0,104830.0,0.062]
[1750316016390,0.24844394,104840.0,104830.0,0.062]
[1750316016602,0.28019852,104840.0,104830.0,0.062]
[1750316016812,0.31939852,104840.0,104830.0,0.062]
[1750316017364,0.31939856,104840.0,104830.0,0.062]
[1750316017686,0.31047892,104840.0,104830.0,0.062]
[1750316017910,0.31939857,104840.0,104830.0,0.062]
[1750316019158,0.34806457,104840.0,104830.0,0.062]
[1750316020344,0.34806415,104840.0,104830.0,0.062]
[1750316023171,0.34806396,104840.0,104830.0,0.062]
[1750316026020,0.33914492,104840.0,104830.0,0.062]
[1750316026226,0.34806385,104840.0,104830.0,0.062]
[1750316034796,0.34806399,104840.0,104830.0,0.062]
[1750316037781,0.34806432,104840.0,104830.0,0.062]
[1750316039210,0.34806436,104840.0,104830.0,0.062]
[1750316042736,0.2903873,104840.0,104830.0,0.062]
[1750316043146,0.29038879,104840.0,104830.0,0.062]
[1750316045263,0.29038937,104840.0,104830.0,0.062]
[1750316046111,0.29038939,104840.0,104830.0,0.062]
[1750316048767,0.25118939,104840.0,104830.0,0.062]
[1750316048988,0.44415017,104840.0,104830.0,0.062]
[1750316049406,0.51358247,104840.0,104830.0,0.062]
[1750316051748,0.35982247,104840.0,104830.0,0.062]
[1750316054388,0.35982353,104840.0,104830.0,0.062]
[1750316054823,0.35982352,104840.0,104830.0,0.062]
[1750316056185,0.29039122,104840.0,104830.0,0.062]
[1750316057237,0.28146786,104840.0,104830.0,0.062]
[1750316057428,0.29039107,104840.0,104830.0,0.062]
[1750316063343,0.28146786,104840.0,104830.0,0.062]
[1750316063554,0.2903892,104840.0,104830.0,0.062]
[1750316064934,0.31243303,104840.0,104830.0,0.062]
[1750316066305,0.30351169,104840.0,104830.0,0.062]
[1750316066504,0.31243294,104840.0,104830.0,0.062]
[1750316067503,0.3409813,104840.0,104830.0,0.062]
[1750316068810,0.04521856,104840.0,104830.0,0.062]
[1750316069278,0.23598554,104840.0,104830.0,0.062]
[1750316069932,0.2092263,104840.0,104830.0,0.062]
[1750316072094,0.209225,104840.0,104830.0,0.062]
[1750316077032,0.20030495,104840.0,104830.0,0.062]
[1750316078826,0.56885331,104840.0,104830.0,0.062]
[1750316080168,0.56881331,104840.0,104830.0,0.062]
[1750316080823,0.59164533,104840.0,104830.0,0.062]
[1750316083934,0.60056413,104840.0,104830.0,0.062]
[1750316085227,0.65400713,104840.0,104830.0,0.062]
[1750316085901,0.65400714,104840.0,104830.0,0.062]
[1750316086156,0.60056414,104840.0,104830.0,0.062]
[1750316090048,0.6005645,104840.0,104830.0,0.062]
[1750316091772,0.60056454,104840.0,104830.0,0.062]
[1750316093913,0.38443033,104840.0,104830.0,0.062]
[1750316094142,0.54664885,104840.0,104830.0,0.062]
[1750316095530,0.56572526,104840.0,104830.0,0.27186349]
[1750316095737,0.56572526,104840.0,104830.0,0.28140256]
[1750316098747,0.55680605,104840.0,104830.0,0.28140256]
[1750316098948,0.56572785,104840.0,104830.0,0.28140256]
[1750316101732,0.56572809,104840.0,104830.0,0.28140256]
[1750316103918,0.59427645,104840.0,104830.0,0.28140256]
[1750316106138,0.59427648,104840.0,104830.0,0.28140256]
[1750316106758,0.58473841,104840.0,104830.0,0.28140256]
[1750316108411,0.57520007,104840.0,104830.0,0.26232433]
[1750316111221,0.57520007,104840.0,104830.0,0.07153925]
[1750316113266,0.566278,104840.0,104830.0,0.07153925]
[1750316113471,0.5752067,104840.0,104830.0,0.07153925]
[1750316114356,0.41335324,104840.0,104830.0,0.07153925]
[1750316114573,0.2225276,104840.0,104830.0,0.07153925]
[1750316115452,0.22255391,104840.0,104830.0,0.07153925]
[1750316116311,0.22255428,104840.0,104830.0,0.07153925]
[1750316116873,0.56255428,104840.0,104830.0,0.07153925]
[1750316117911,0.56255428,104840.0,104830.0,0.062]
[1750316119244,0.56255437,104840.0,104830.0,0.07153925]
[1750316119474,0.56255437,104840.0,104830.0,0.26232433]
[1750316120310,0.56255441,104840.0,104830.0,0.26232433]
[1750316122233,0.56255467,104840.0,104830.0,0.26232433]
[1750316123987,0.56255467,104840.0,104830.0,0.27186349]
[1750316124432,0.59112758,104840.0,104830.0,0.28140256]
[1750316124645,0.59112758,104840.0,104830.0,0.27186349]
[1750316126066,0.59112758,104840.0,104830.0,0.28140256]
[1750316126503,0.59112758,104840.0,104830.0,0.27186349]
[1750316127143,0.59112758,104840.0,104830.0,0.28140256]
[1750316127354,0.60066592,104840.0,104830.0,0.29094154]
[1750316127574,0.0603607,104840.0,104830.0,0.30048024]
[1750316127786,0.03754284,104840.0,104830.0,0.3004796]
[1750316127992,0.04708316,104840.0,104830.0,0.3004796]
[1750316128215,0.38708316,104840.0,104830.0,0.3004796]
[1750316128431,0.40994149,104840.0,104830.0,0.3004796]
[1750316128638,0.59117085,104840.0,104830.0,0.28140229]
[1750316128847,0.59117085,104840.0,104830.0,0.29094118]
[1750316129055,0.59117085,104840.0,104830.0,0.27186313]
[1750316129563,0.58163306,104840.0,104830.0,0.28140229]
[1750316131010,0.58162773,104840.0,104830.0,0.28140229]
[1750316131625,0.58162773,104840.0,104830.0,0.29094118]
[1750316133969,0.58162773,104840.0,104830.0,0.30047997]
[1750316135252,0.58162773,104840.0,104830.0,0.30047951]
[1750316136905,0.58162643,104840.0,104830.0,0.30047951]
[1750316137124,0.59116477,104840.0,104830.0,0.30047951]
[1750316137349,0.59116477,104840.0,104830.0,0.29094081]
[1750316137576,0.40039789,104840.0,104830.0,0.30047951]
[1750316137809,0.40039789,104840.0,104830.0,0.30047905]
[1750316138281,0.40039625,104840.0,104830.0,0.30047905]
[1750316139861,0.39085791,104840.0,104830.0,0.30047905]
[1750316140090,0.40039616,104840.0,104830.0,0.30047905]
[1750316141338,0.4099345,104840.0,104830.0,0.30047905]
[1750316141501,0.4099345,104840.0,104830.0,0.45411905]
[1750316142811,0.40993468,104840.0,104830.0,0.44458044]
[1750316144939,0.60070156,104840.0,104830.0,0.44458044]
[1750316145774,0.60070195,104840.0,104830.0,0.44458044]
[1750316147114,0.60070195,104840.0,104830.0,0.43504174]
[1750316147466,0.60070195,104840.0,104830.0,0.21564]
[1750316147664,0.59116388,104840.0,104830.0,0.40642508]
[1750316148070,0.59116388,104840.0,104830.0,0.42550313]
[1750316148210,0.59116388,104840.0,104830.0,0.43504202]
[1750316148853,0.59116388,104840.0,104830.0,0.41596415]
[1750316149054,0.59116388,104840.0,104830.0,0.42550313]
[1750316149405,0.59116388,104840.0,104830.0,0.41596415]
[1750316149613,0.57208747,104840.0,104830.0,0.41596415]
[1750316151134,0.56254913,104840.0,104830.0,0.41596433]
[1750316151557,0.56255265,104840.0,104830.0,0.41596433]
[1750316152420,0.56255265,104840.0,104830.0,0.42550349]
[1750316153256,0.56255265,104840.0,104830.0,0.27186349]
[1750316153469,0.56255265,104840.0,104830.0,0.43500256]
[1750316154325,0.56255493,104840.0,104830.0,0.43500256]
[1750316154557,0.56255518,104840.0,104830.0,0.43500256]
[1750316157417,0.56255952,104840.0,104830.0,0.43500256]
[1750316160578,0.56255948,104840.0,104830.0,0.43500256]
[1750316162040,0.22255948,104840.0,104830.0,0.43500256]
[1750316166466,0.21362521,104840.0,104830.0,0.43500256]
[1750316166598,0.22256141,104840.0,104830.0,0.43500256]
[1750316167979,0.56257925,104840.0,104830.0,0.43500256]
[1750316168198,0.56257925,104840.0,104830.0,0.44454154]
[1750316168909,0.56257905,104840.0,104830.0,0.44454154]
[1750316172479,0.39088821,104840.0,104830.0,0.45408024]
[1750316172688,0.59119334,104840.0,104830.0,0.4540796]
[1750316172900,0.40042582,104840.0,104830.0,0.4540796]
[1750316173117,0.40996407,104840.0,104830.0,0.4540796]
[1750316173929,0.61026929,104840.0,104830.0,0.4540796]
[1750316174152,0.61026929,104840.0,104830.0,0.44454099]
[1750316174593,0.41950241,104840.0,104830.0,0.44454099]
[1750316174816,0.41950241,104840.0,104830.0,0.4540796]
[1750316175046,0.61026929,104840.0,104830.0,0.4540796]
[1750316176744,0.61027473,104840.0,104830.0,0.4540796]
[1750316179884,0.60133329,104840.0,104830.0,0.4540796]
[1750316180102,0.61027661,104840.0,104830.0,0.4540796]
[1750316181772,0.61027661,104840.0,104830.0,0.44454099]
[1750316182510,0.600739,104840.0,104830.0,0.44454099]
[1750316183748,0.60073901,104840.0,104830.0,0.44454099]
[1750316184880,0.60073901,104840.0,104830.0,0.43500229]
[1750316185118,0.59120113,104840.0,104830.0,0.44454118]
[1750316186097,0.57212472,104840.0,104830.0,0.40638508]
[1750316186303,0.57212472,104840.0,104830.0,0.42546331]
[1750316186514,0.57212472,104840.0,104830.0,0.41592424]
[1750316187529,0.57212472,104840.0,104830.0,0.42546349]
[1750316187737,0.57212472,104840.0,104830.0,0.43500247]
[1750316189685,0.57212535,104840.0,104830.0,0.43500247]
[1750316189899,0.57212535,104840.0,104830.0,0.44454136]
[1750316191857,0.57212535,104840.0,104830.0,0.45408015]
[1750316192078,0.39089617,104840.0,104830.0,0.45407951]
[1750316193542,0.40043396,104840.0,104830.0,0.45407951]
[1750316194285,0.40043429,104840.0,104830.0,0.45407951]
[1750316194497,0.40997181,104840.0,104830.0,0.45407951]
[1750316195580,0.40997179,104840.0,104830.0,0.45407951]
[1750316198448,0.40102752,104840.0,104830.0,0.45407951]
[1750316198677,0.40997223,104840.0,104830.0,0.45407951]
[1750316199849,0.40997214,104840.0,104830.0,0.45407951]
[1750316200261,0.3813584,104840.0,104830.0,0.45407951]
[1750316200467,0.40043408,104840.0,104830.0,0.45407951]
[1750316200806,0.3908961,104840.0,104830.0,0.45407951]
[1750316201032,0.40043506,104840.0,104830.0,0.45407951]
[1750316201403,0.40043378,104840.0,104830.0,0.45407951]
[1750316203303,0.40997194,104840.0,104830.0,0.45407951]
[1750316204929,0.40043378,104840.0,104830.0,0.45407951]
[1750316205379,0.40997185,104840.0,104830.0,0.45407951]
[1750316206167,0.40043378,104840.0,104830.0,0.45407951]
[1750316206476,0.3908958,104840.0,104830.0,0.45407951]
[1750316206687,0.40043378,104840.0,104830.0,0.45407951]
[1750316207299,0.39148937,104840.0,104830.0,0.45407951]
[1750316207531,0.40043292,104840.0,104830.0,0.45407951]
[1750316208178,0.40997099,104840.0,104830.0,0.45407951]
[1750316208389,0.40043292,104840.0,104830.0,0.45407951]
[1750316208596,0.40043282,104840.0,104830.0,0.45407951]
[1750316210241,0.4004327,104840.0,104830.0,0.45407951]
[1750316212894,0.39089482,104840.0,104830.0,0.45407951]
[1750316213119,0.4004328,104840.0,104830.0,0.45407951]
[1750316215119,0.40997087,104840.0,104830.0,0.45407951]
[1750316215543,0.41950903,104840.0,104830.0,0.45407951]
[1750316215795,0.41950912,104840.0,104830.0,0.45407951]
[1750316216085,0.40997096,104840.0,104830.0,0.45407951]
[1750316217504,0.40043279,104840.0,104830.0,0.45407951]
[1750316217660,0.40997086,104840.0,104830.0,0.45407951]
[1750316217860,0.40043279,104840.0,104830.0,0.45407951]
[1750316218470,0.40042987,104840.0,104830.0,0.45407951]
[1750316218722,0.40996785,104840.0,104830.0,0.45407951]
[1750316219059,0.40102725,104840.0,104830.0,0.45407951]
[1750316219263,0.40996784,104840.0,104830.0,0.45407951]
[1750316220742,0.419506,104840.0,104830.0,0.45407951]
[1750316221286,0.40996784,104840.0,104830.0,0.45407951]
[1750316221481,0.40042996,104840.0,104830.0,0.45407951]
[1750316221707,0.39089198,104840.0,104830.0,0.45407951]
[1750316221909,0.40042766,104840.0,104830.0,0.45407951]
[1750316222115,0.39088978,104840.0,104830.0,0.45407951]
[1750316222462,0.40042766,104840.0,104830.0,0.45407951]
[1750316223868,0.40042712,104840.0,104830.0,0.45407951]
[1750316224308,0.39088924,104840.0,104830.0,0.45407951]
[1750316224558,0.40042712,104840.0,104830.0,0.45399951]
[1750316224777,0.40042681,104840.0,104830.0,0.45399951]
[1750316225301,0.02861693,104830.0,104820.0,0.0634]
[1750316225513,0.22833955,104830.0,104820.0,0.42680324]
[1750316225723,0.22833955,104830.0,104820.0,0.42680333]
[1750316225724,0.00480469,104830.0,104820.0,0.42680333]
[1750316225939,0.19078508,104830.0,104820.0,0.42680333]
[1750316226151,0.23273551,104830.0,104820.0,0.43634322]
[1750316226371,0.23273551,104830.0,104820.0,0.28282322]
[1750316226585,0.23273551,104830.0,104820.0,0.43634322]
[1750316227648,0.23273551,104830.0,104820.0,0.28282322]
[1750316227868,0.23273551,104830.0,104820.0,0.43634322]
[1750316228323,0.23273551,104830.0,104820.0,0.43734322]
[1750316228995,0.22319653,104830.0,104820.0,0.43734322]
[1750316230762,0.20032433,104830.0,104820.0,0.43734322]
[1750316231069,0.20032433,104830.0,104820.0,0.44688302]
[1750316233601,0.20032433,104830.0,104820.0,0.43734322]
[1750316234481,0.20032433,104830.0,104820.0,0.44688302]
[1750316235298,0.53076688,104840.0,104830.0,0.26642433]
[1750316235506,0.38191934,104840.0,104830.0,0.29504135]
[1750316235721,0.57268622,104840.0,104830.0,0.29504135]
[1750316235982,0.39145713,104840.0,104830.0,0.30458005]
[1750316236195,0.40099547,104840.0,104830.0,0.30458005]
[1750316236613,0.59176235,104840.0,104830.0,0.29504135]
[1750316237563,0.59176235,104840.0,104830.0,0.29504145]
[1750316237762,0.59114382,104840.0,104830.0,0.29504145]
[1750316237977,0.58160566,104840.0,104830.0,0.28550256]
[1750316239035,0.57206741,104840.0,104830.0,0.28550256]
[1750316239243,0.57206884,104840.0,104830.0,0.28550256]
[1750316239665,0.5625305,104840.0,104830.0,0.28550256]
[1750316240760,0.56253005,104840.0,104830.0,0.28550256]
[1750316241936,0.56253005,104840.0,104830.0,0.29504154]
[1750316246005,0.22253005,104840.0,104830.0,0.29504154]
[1750316247125,0.00358486,104840.0,104830.0,0.29504154]
[1750316247360,0.19076688,104840.0,104830.0,0.29504154]
[1750316247579,0.19076688,104840.0,104830.0,0.30458043]
[1750316248011,0.53076688,104840.0,104830.0,0.30458043]
[1750316248735,0.54030504,104840.0,104830.0,0.30458043]
[1750316249367,0.54030504,104840.0,104830.0,0.30457997]
[1750316250214,0.54030504,104840.0,104830.0,0.30457951]
[1750316251895,0.54030504,104840.0,104830.0,0.27596313]
[1750316252848,0.54030504,104840.0,104830.0,0.0661]
[1750316253278,0.54030504,104840.0,104830.0,0.26642433]
[1750316253806,0.35907823,104830.0,104820.0,0.29086246]
[1750316254006,0.36861721,104830.0,104820.0,0.43484294]
[1750316254212,0.37815646,104830.0,104820.0,0.43484294]
[1750316254638,0.37815646,104830.0,104820.0,0.44438283]
[1750316254829,0.56894154,104830.0,104820.0,0.44438283]
[1750316255037,0.56894154,104830.0,104820.0,0.44538283]
[1750316257598,0.55940256,104830.0,104820.0,0.44538283]
[1750316258369,0.36861748,104830.0,104820.0,0.45492235]
[1750316258681,0.55940256,104830.0,104820.0,0.44538283]
[1750316258875,0.36861748,104830.0,104820.0,0.44538283]
[1750316259110,0.36861748,104830.0,104820.0,0.45492244]
[1750316259317,0.38194071,104830.0,104820.0,0.4549218]
[1750316259526,0.39087088,104830.0,104820.0,0.4549218]
[1750316263571,0.390873,104830.0,104820.0,0.4549218]
[1750316265394,0.59119733,104830.0,104820.0,0.4549218]
[1750316265708,0.390873,104830.0,104820.0,0.4549218]
[1750316266537,0.39087531,104830.0,104820.0,0.4549218]
[1750316266739,0.40041456,104830.0,104820.0,0.44538228]
[1750316266896,0.59119964,104830.0,104820.0,0.44538228]
[1750316269298,0.59119964,104830.0,104820.0,0.40722328]
[1750316269514,0.59119964,104830.0,104820.0,0.41676308]
[1750316270486,0.59119964,104830.0,104820.0,0.42630306]
[1750316272233,0.58226504,104830.0,104820.0,0.42630306]
[1750316272440,0.59119836,104830.0,104820.0,0.42630306]
[1750316272646,0.59119836,104830.0,104820.0,0.41676326]
[1750316272847,0.58165929,104830.0,104820.0,0.41676326]
[1750316273145,0.58165929,104830.0,104820.0,0.42630315]
[1750316273733,0.58165929,104830.0,104820.0,0.26324326]
[1750316273950,0.57212013,104830.0,104820.0,0.41676326]
[1750316274681,0.57212013,104830.0,104820.0,0.26324326]
[1750316274889,0.57212013,104830.0,104820.0,0.41676326]
[1750316275172,0.56318681,104830.0,104820.0,0.41676326]
[1750316275386,0.57211977,104830.0,104820.0,0.41676326]
[1750316276448,0.57211977,104830.0,104820.0,0.41672326]
[1750316278230,0.57211861,104830.0,104820.0,0.41672326]
[1750316280296,0.57211861,104830.0,104820.0,0.26324326]
[1750316280523,0.56257936,104830.0,104820.0,0.0629]
[1750316280762,0.56257936,104830.0,104820.0,0.21638]
[1750316281219,0.56257865,104830.0,104820.0,0.21638]
[1750316283939,0.56257839,104830.0,104820.0,0.21638]
[1750316284369,0.56257838,104830.0,104820.0,0.21638]
[1750316284586,0.56257838,104830.0,104820.0,0.0629]
[1750316284796,0.56257838,104830.0,104820.0,0.21642]
[1750316285457,0.5955046,104830.0,104820.0,0.21642]
[1750316285898,0.5955046,104830.0,104820.0,0.001]
[1750316286117,0.5955046,104830.0,104820.0,0.15452]
[1750316286787,0.5955046,104830.0,104820.0,0.001]
[1750316288978,0.5955046,104830.0,104820.0,0.0638]
[1750316291713,0.56257838,104830.0,104820.0,0.0638]
[1750316292579,0.57211745,104830.0,104820.0,0.27368315]
[1750316292805,0.58165643,104830.0,104820.0,0.28322285]
[1750316293024,0.41948846,104830.0,104820.0,0.29276246]
[1750316293450,0.40994976,104830.0,104820.0,0.29276246]
[1750316295656,0.40041051,104830.0,104820.0,0.29276246]
[1750316296115,0.40041051,104830.0,104820.0,0.30230198]
[1750316296756,0.40041366,104830.0,104820.0,0.30230198]
[1750316298224,0.38133488,104830.0,104820.0,0.30230198]
[1750316298447,0.40041406,104830.0,104820.0,0.30230198]
[1750316299603,0.40995258,104830.0,104820.0,0.30230198]
[1750316300042,0.40995249,104830.0,104820.0,0.30230198]
[1750316300872,0.03179795,104830.0,104820.0,0.30230198]
[1750316301098,0.00953861,104830.0,104820.0,0.30230198]
[1750316301317,0.01847396,104830.0,104820.0,0.39854374]
[1750316301542,0.00893544,104830.0,104820.0,0.39854374]
[1750316301759,0.01847387,104830.0,104820.0,0.38036351]
[1750316302690,0.01847387,104830.0,104820.0,0.67186351]
[1750316303329,0.02801239,104830.0,104820.0,0.67186351]
[1750316303552,0.0280111,104830.0,104820.0,0.67186351]
[1750316303771,0.01847258,104830.0,104820.0,0.67186351]
[1750316304360,0.02801119,104830.0,104820.0,0.67186351]
[1750316304787,0.01847258,104830.0,104820.0,0.67186351]
[1750316305084,0.02801119,104830.0,104820.0,0.67186351]
[1750316306936,0.01907704,104830.0,104820.0,0.67186351]
[1750316307145,0.01846971,104830.0,104820.0,0.67186351]
[1750316308822,0.00893119,104830.0,104820.0,0.67186351]
[1750316309040,0.40994553,104840.0,104830.0,0.28090174]
[1750316309259,0.40994556,104840.0,104830.0,0.28090174]
[1750316310332,0.37754465,104840.0,104830.0,0.72604174]
[1750316310736,0.37754474,104840.0,104830.0,0.72604174]
[1750316311015,0.37754465,104840.0,104830.0,0.72604174]
[1750316312544,0.55877438,104840.0,104830.0,0.353]
[1750316312776,0.54032415,104830.0,104820.0,0.0642]
[1750316313025,0.02861893,104820.0,104810.0,0.57523741]
[1750316313248,0.5689621,104820.0,104810.0,0.43753759]
[1750316313683,0.54988315,104820.0,104810.0,0.27419707]
[1750316313907,0.54988315,104820.0,104810.0,0.42799707]
[1750316315202,0.54988315,104820.0,104810.0,0.43753778]
[1750316315638,0.54988315,104820.0,104810.0,0.43953778]
[1750316315855,0.54988315,104820.0,104810.0,0.28773778]
[1750316316071,0.54988315,104820.0,104810.0,0.44153778]
[1750316318040,0.54988315,104820.0,104810.0,0.28773778]
[1750316318267,0.54988315,104820.0,104810.0,0.44153778]
[1750316318711,0.54988315,104820.0,104810.0,0.43199707]
[1750316318958,0.54034326,104820.0,104810.0,0.43199707]
[1750316319186,0.54034326,104820.0,104810.0,0.42245627]
[1750316319406,0.54034326,104820.0,104810.0,0.44153796]
[1750316319616,0.54926876,104820.0,104810.0,0.44153796]
[1750316319872,0.54034326,104820.0,104810.0,0.44153796]
[1750316320090,0.54926737,104820.0,104810.0,0.44153796]
[1750316320325,0.53972739,104820.0,104810.0,0.42241627]
[1750316321206,0.53972739,104820.0,104810.0,0.43195707]
[1750316321427,0.54926737,104820.0,104810.0,0.4510383]
[1750316322345,0.20926737,104820.0,104810.0,0.4510383]
[1750316322980,0.20926737,104820.0,104810.0,0.44149778]
[1750316325123,0.54926737,104820.0,104810.0,0.44149778]
[1750316325559,0.54927087,104820.0,104810.0,0.44149778]
[1750316326979,0.34820987,104820.0,104810.0,0.44149778]
[1750316327181,0.53901315,104820.0,104810.0,0.44149778]
[1750316328530,0.54855313,104820.0,104810.0,0.44149778]
[1750316328751,0.54855198,104820.0,104810.0,0.44149778]
[1750316329131,0.36822994,104820.0,104810.0,0.44149778]
[1750316329342,0.20926972,104820.0,104810.0,0.45103839]
[1750316334230,0.20927075,104820.0,104810.0,0.45103839]
[1750316334691,0.20927123,104820.0,104810.0,0.45103839]
[1750316336544,0.54927123,104820.0,104810.0,0.45103839]
[1750316336734,0.54927123,104820.0,104810.0,0.44149778]
[1750316337496,0.54034326,104820.0,104810.0,0.44149778]
[1750316337720,0.54927192,104820.0,104810.0,0.44149778]
[1750316337933,0.54927192,104820.0,104810.0,0.45103839]
[1750316340544,0.54927493,104820.0,104810.0,0.43195707]
[1750316340788,0.54927493,104820.0,104810.0,0.27819707]
[1750316341011,0.54927493,104820.0,104810.0,0.44153768]
[1750316342395,0.57217149,104820.0,104810.0,0.44153768]
[1750316343079,0.57218481,104820.0,104810.0,0.44153768]
[1750316344007,0.57218481,104820.0,104810.0,0.43199707]
[1750316344241,0.57218481,104820.0,104810.0,0.42245627]
[1750316344621,0.57218481,104820.0,104810.0,0.43199716]
[1750316346608,0.57218481,104820.0,104810.0,0.44153796]
[1750316348928,0.56264483,104820.0,104810.0,0.43199716]
[1750316349150,0.56264443,104820.0,104810.0,0.43199716]
[1750316350153,0.56264458,104820.0,104810.0,0.43199716]
[1750316350376,0.33804517,104820.0,104810.0,0.2221]
[1750316350599,0.52884845,104820.0,104810.0,0.23164107]
[1750316351120,0.52884845,104820.0,104810.0,0.24118205]
[1750316351562,0.52884845,104820.0,104810.0,0.43200353]
[1750316351773,0.52884845,104820.0,104810.0,0.28774442]
[1750316351990,0.52884845,104820.0,104810.0,0.44146442]
[1750316352332,0.52884845,104820.0,104810.0,0.45100522]
[1750316353327,0.3321947,104820.0,104810.0,0.45100522]
[1750316353874,0.3321947,104820.0,104810.0,0.44146442]
[1750316354118,0.22264458,104820.0,104810.0,0.44146442]
[1750316354532,0.17955938,104830.0,104810.0,0.44146442]
[1750316354734,0.19080328,104820.0,104810.0,0.44146442]
[1750316355353,0.53080328,104820.0,104810.0,0.44146442]
[1750316355589,0.53080328,104820.0,104810.0,0.22002]
[1750316355798,0.53080328,104820.0,104810.0,0.22956107]
[1750316356441,0.53080328,104820.0,104810.0,0.42238255]
[1750316356651,0.53080328,104820.0,104810.0,0.27620344]
[1750316356880,0.53080328,104820.0,104810.0,0.43942424]
[1750316357086,0.53080328,104820.0,104810.0,0.44042424]
[1750316357489,0.53080328,104820.0,104810.0,0.43942424]
[1750316357696,0.53080328,104820.0,104810.0,0.44142424]
[1750316358409,0.19080328,104820.0,104810.0,0.44142424]
[1750316358656,0.19080328,104820.0,104810.0,0.45096522]
[1750316365339,0.53080328,104820.0,104810.0,0.46050593]
[1750316366586,0.5626469,104820.0,104810.0,0.46050593]
[1750316366807,0.57218697,104820.0,104810.0,0.46050547]
[1750316367025,0.3909234,104820.0,104810.0,0.46050492]
[1750316367251,0.41000299,104820.0,104810.0,0.46050492]
[1750316367487,0.40046282,104820.0,104810.0,0.46050492]
[1750316369492,0.39151799,104820.0,104810.0,0.46050492]